[Event "Titled Tuesday Blitz July 11 Early 2023"]
[White "Dronavalli, Harika"]
[Black "Shimanov, Aleksandr"]
[WhiteFideId "5015197"]
[BlackFideId "4198603"]
[WhiteElo "2643"]
[BlackElo "2918"]
[Result "1/2-1/2"]
[Round "3"]
[TimeControl "180+2"]
[Date "2023.07.11"]
[WhiteClock "0:00:14"]
[BlackClock "0:00:09"]
[Board "17"]

1. e4 {[%clk 0:03:00]}  c6 {[%clk 0:02:58]} 2. d4 {[%clk 0:03:00]}  d5 {[%clk 0:02:59]} 3. exd5 {[%clk 0:03:00]}  cxd5 {[%clk 0:02:59]} 4. c3 {[%clk 0:03:01]}  Nf6 {[%clk 0:02:58]} 5. Bf4 {[%clk 0:03:01]}  Nc6 {[%clk 0:02:48]} 6. Nf3 {[%clk 0:02:58]}  a6 {[%clk 0:02:46]} 7. Nbd2 {[%clk 0:02:56]}  Bf5 {[%clk 0:02:43]} 8. Be2 {[%clk 0:02:55]}  e6 {[%clk 0:02:41]} 9. O-O {[%clk 0:02:49]}  Be7 {[%clk 0:02:41]} 10. Re1 {[%clk 0:02:47]}  O-O {[%clk 0:02:41]} 11. Nf1 {[%clk 0:02:40]}  b5 {[%clk 0:02:28]} 12. a3 {[%clk 0:02:39]}  Na5 {[%clk 0:02:23]} 13. Ng3 {[%clk 0:02:38]}  Bg6 {[%clk 0:02:23]} 14. Ne5 {[%clk 0:02:37]}  Nd7 {[%clk 0:02:19]} 15. Nxg6 {[%clk 0:02:11]}  hxg6 {[%clk 0:02:19]} 16. Bd3 {[%clk 0:02:08]}  Nc4 {[%clk 0:02:17]} 17. Re2 {[%clk 0:02:04]}  Rc8 {[%clk 0:02:16]} 18. Nf1 {[%clk 0:02:03]}  Bg5 {[%clk 0:02:11]} 19. Qc1 {[%clk 0:01:48]}  Bxf4 {[%clk 0:02:08]} 20. Qxf4 {[%clk 0:01:49]}  Nf6 {[%clk 0:01:51]} 21. Ng3 {[%clk 0:01:45]}  Qd6 {[%clk 0:01:42]} 22. Qg5 {[%clk 0:01:44]}  a5 {[%clk 0:01:23]} 23. h4 {[%clk 0:01:44]}  Qd8 {[%clk 0:01:24]} 24. Rae1 {[%clk 0:01:32]}  b4 {[%clk 0:01:15]} 25. axb4 {[%clk 0:01:31]}  axb4 {[%clk 0:01:16]} 26. cxb4 {[%clk 0:01:32]}  Rb8 {[%clk 0:01:12]} 27. b5 {[%clk 0:01:11]}  Nd6 {[%clk 0:01:07]} 28. Qe5 {[%clk 0:01:01]}  Ng4 {[%clk 0:00:46]} 29. Qf4 {[%clk 0:00:53]}  Nf6 {[%clk 0:00:41]} 30. Qe5 {[%clk 0:00:53]}  Nc4 {[%clk 0:00:25]} 31. Qg5 {[%clk 0:00:46]}  Nd7 {[%clk 0:00:22]} 32. Qg4 {[%clk 0:00:42]}  Nf6 {[%clk 0:00:09]} 33. Qf3 {[%clk 0:00:32]}  Nd6 {[%clk 0:00:09]} 34. h5 {[%clk 0:00:31]}  g5 {[%clk 0:00:09]} 35. Qe3 {[%clk 0:00:24]}  Ng4 {[%clk 0:00:09]} 36. Qd2 {[%clk 0:00:23]}  Nxb5 {[%clk 0:00:08]} 37. f3 {[%clk 0:00:19]}  Nh6 {[%clk 0:00:08]} 38. Bb1 {[%clk 0:00:15]}  Qb6 {[%clk 0:00:04]} 39. Rd1 {[%clk 0:00:15]}  Rbc8 {[%clk 0:00:03]} 40. Qd3 {[%clk 0:00:16]}  f5 {[%clk 0:00:02]} 41. Nf1 {[%clk 0:00:15]}  Rf6 {[%clk 0:00:02]} 42. Qe3 {[%clk 0:00:15]}  Nd6 {[%clk 0:00:03]} 43. Qxg5 {[%clk 0:00:15]}  f4 {[%clk 0:00:03]} 44. Kh1 {[%clk 0:00:10]}  Rc4 {[%clk 0:00:03]} 45. Rde1 {[%clk 0:00:10]}  Ndf7 {[%clk 0:00:03]} 46. Qh4 {[%clk 0:00:06]}  Rxd4 {[%clk 0:00:04]} 47. Qh3 {[%clk 0:00:06]}  e5 {[%clk 0:00:03]} 48. Bg6 {[%clk 0:00:06]}  Qd8 {[%clk 0:00:02]} 49. Qh4 {[%clk 0:00:04]}  Rd6 {[%clk 0:00:02]} 50. Qxd8+ {[%clk 0:00:04]}  Rxd8 {[%clk 0:00:03]} 51. Nd2 {[%clk 0:00:04]}  Rb4 {[%clk 0:00:03]} 52. Nb1 {[%clk 0:00:04]}  d4 {[%clk 0:00:03]} 53. Rd2 {[%clk 0:00:04]}  Rb6 {[%clk 0:00:02]} 54. Na3 {[%clk 0:00:04]}  Rc6 {[%clk 0:00:02]} 55. b3 {[%clk 0:00:04]}  Rc3 {[%clk 0:00:02]} 56. Nc4 {[%clk 0:00:05]}  Rxb3 {[%clk 0:00:02]} 57. Nxe5 {[%clk 0:00:05]}  Nxe5 {[%clk 0:00:03]} 58. Rxe5 {[%clk 0:00:06]}  Rb7 {[%clk 0:00:03]} 59. Rxd4 {[%clk 0:00:06]}  Rbb8 {[%clk 0:00:02]} 60. Rxd8+ {[%clk 0:00:06]}  Rxd8 {[%clk 0:00:03]} 61. Re4 {[%clk 0:00:06]}  Rf8 {[%clk 0:00:03]} 62. Kh2 {[%clk 0:00:06]}  Rf6 {[%clk 0:00:03]} 63. Kh3 {[%clk 0:00:07]}  Rf8 {[%clk 0:00:04]} 64. Kh4 {[%clk 0:00:07]}  Rf6 {[%clk 0:00:03]} 65. Re8+ {[%clk 0:00:07]}  Rf8 {[%clk 0:00:03]} 66. Rxf8+ {[%clk 0:00:08]}  Kxf8 {[%clk 0:00:04]} 67. Kg5 {[%clk 0:00:08]}  Ke7 {[%clk 0:00:05]} 68. Kxf4 {[%clk 0:00:09]}  Ng8 {[%clk 0:00:06]} 69. g4 {[%clk 0:00:09]}  Nf6 {[%clk 0:00:07]} 70. g5 {[%clk 0:00:10]}  Nd5+ {[%clk 0:00:07]} 71. Ke5 {[%clk 0:00:10]}  Ne3 {[%clk 0:00:07]} 72. h6 {[%clk 0:00:11]}  gxh6 {[%clk 0:00:07]} 73. gxh6 {[%clk 0:00:12]}  Kf8 {[%clk 0:00:07]} 74. Kf6 {[%clk 0:00:12]}  Nd5+ {[%clk 0:00:07]} 75. Ke5 {[%clk 0:00:12]}  Ne3 {[%clk 0:00:08]} 76. f4 {[%clk 0:00:13]}  Ng4+ {[%clk 0:00:08]} 77. Ke6 {[%clk 0:00:13]}  Nxh6 {[%clk 0:00:09]} 78. f5 {[%clk 0:00:14]}  Ng4 {[%clk 0:00:09]} 79. f6 {[%clk 0:00:14]}  Nxf6 {[%clk 0:00:09]} 1/2-1/2


[Site "https://www.chess.com"]

[Event "Titled Tuesday Blitz July 11 Early 2023"]
[White "Suleymanli, Suleyman"]
[Black "Gordievsky, Dmitry"]
[WhiteFideId "13416375"]
[BlackFideId "24112798"]
[WhiteElo "2643"]
[BlackElo "2913"]
[Result "1-0"]
[Round "3"]
[TimeControl "180+2"]
[Date "2023.07.11"]
[WhiteClock "0:00:25"]
[BlackClock "0:00:06"]
[Board "18"]

1. Nf3 {[%clk 0:03:00]}  c5 {[%clk 0:02:59]} 2. g3 {[%clk 0:03:00]}  Nc6 {[%clk 0:02:59]} 3. c4 {[%clk 0:03:00]}  g6 {[%clk 0:02:59]} 4. Bg2 {[%clk 0:03:00]}  Bg7 {[%clk 0:03:00]} 5. Nc3 {[%clk 0:03:01]}  d6 {[%clk 0:03:00]} 6. O-O {[%clk 0:03:02]}  Bf5 {[%clk 0:03:01]} 7. d3 {[%clk 0:02:59]}  Qd7 {[%clk 0:03:01]} 8. e4 {[%clk 0:02:59]}  Bg4 {[%clk 0:02:58]} 9. h4 {[%clk 0:02:57]}  Nf6 {[%clk 0:02:57]} 10. Be3 {[%clk 0:02:57]}  Ne5 {[%clk 0:02:49]} 11. Nxe5 {[%clk 0:02:54]}  dxe5 {[%clk 0:02:44]} 12. f3 {[%clk 0:02:54]}  Bh3 {[%clk 0:02:39]} 13. Bxc5 {[%clk 0:02:52]}  Nh5 {[%clk 0:02:29]} 14. Bf2 {[%clk 0:02:47]}  Rd8 {[%clk 0:02:20]} 15. Nd5 {[%clk 0:02:32]}  Bxg2 {[%clk 0:02:19]} 16. Kxg2 {[%clk 0:02:33]}  e6 {[%clk 0:02:19]} 17. Nc3 {[%clk 0:02:33]}  a6 {[%clk 0:02:12]} 18. Qb3 {[%clk 0:02:29]}  Bf6 {[%clk 0:01:59]} 19. Rfd1 {[%clk 0:02:22]}  h6 {[%clk 0:01:51]} 20. Ne2 {[%clk 0:02:19]}  O-O {[%clk 0:01:27]} 21. g4 {[%clk 0:02:16]}  Nf4+ {[%clk 0:01:20]} 22. Nxf4 {[%clk 0:02:17]}  exf4 {[%clk 0:01:20]} 23. d4 {[%clk 0:02:13]}  Qe7 {[%clk 0:01:20]} 24. Kh3 {[%clk 0:02:05]}  Kh7 {[%clk 0:01:01]} 25. d5 {[%clk 0:02:05]}  exd5 {[%clk 0:00:59]} 26. cxd5 {[%clk 0:02:04]}  Be5 {[%clk 0:00:55]} 27. Rac1 {[%clk 0:02:04]}  Rd7 {[%clk 0:00:54]} 28. Bc5 {[%clk 0:02:00]}  Bd6 {[%clk 0:00:54]} 29. Qb4 {[%clk 0:01:55]}  Rfd8 {[%clk 0:00:50]} 30. Bxd6 {[%clk 0:01:53]}  Rxd6 {[%clk 0:00:51]} 31. Rc3 {[%clk 0:01:45]}  f5 {[%clk 0:00:47]} 32. Rdc1 {[%clk 0:01:29]}  R8d7 {[%clk 0:00:46]} 33. exf5 {[%clk 0:01:21]}  gxf5 {[%clk 0:00:46]} 34. Qxf4 {[%clk 0:01:14]}  fxg4+ {[%clk 0:00:46]} 35. fxg4 {[%clk 0:01:03]}  Rf6 {[%clk 0:00:46]} 36. Qd4 {[%clk 0:00:59]}  Qf7 {[%clk 0:00:41]} 37. Qe4+ {[%clk 0:00:54]}  Kg7 {[%clk 0:00:38]} 38. d6 {[%clk 0:00:50]}  Rfxd6 {[%clk 0:00:33]} 39. Rf3 {[%clk 0:00:48]}  Qxa2 {[%clk 0:00:29]} 40. Qe5+ {[%clk 0:00:44]}  Kh7 {[%clk 0:00:29]} 41. Qf5+ {[%clk 0:00:37]}  Kg7 {[%clk 0:00:27]} 42. Qf8+ {[%clk 0:00:27]}  Kh7 {[%clk 0:00:27]} 43. Rc8 {[%clk 0:00:27]}  Qxb2 {[%clk 0:00:06]} 44. Qg8# {[%clk 0:00:25]} 1-0


[Site "https://www.chess.com"]

[Event "Titled Tuesday Blitz July 11 Early 2023"]
[White "Koshulyan, Egor A."]
[Black "Tang, Andrew"]
[WhiteFideId "24237000"]
[BlackFideId "2059630"]
[WhiteElo "2641"]
[BlackElo "2910"]
[Result "0-1"]
[Round "3"]
[TimeControl "180+2"]
[Date "2023.07.11"]
[WhiteClock "0:01:15"]
[BlackClock "0:01:45"]
[Board "19"]

1. e4 {[%clk 0:03:00]}  e5 {[%clk 0:03:00]} 2. Nf3 {[%clk 0:02:59]}  Nc6 {[%clk 0:03:00]} 3. Bb5 {[%clk 0:02:59]}  g6 {[%clk 0:03:00]} 4. O-O {[%clk 0:02:53]}  Bg7 {[%clk 0:03:00]} 5. c3 {[%clk 0:02:52]}  a6 {[%clk 0:02:59]} 6. Ba4 {[%clk 0:02:51]}  b5 {[%clk 0:02:59]} 7. Bb3 {[%clk 0:02:49]}  Na5 {[%clk 0:02:59]} 8. Bc2 {[%clk 0:02:48]}  Ne7 {[%clk 0:02:59]} 9. d4 {[%clk 0:02:47]}  exd4 {[%clk 0:03:00]} 10. cxd4 {[%clk 0:02:46]}  O-O {[%clk 0:03:01]} 11. Nc3 {[%clk 0:02:38]}  d6 {[%clk 0:02:50]} 12. Bg5 {[%clk 0:02:32]}  h6 {[%clk 0:02:50]} 13. Bh4 {[%clk 0:02:28]}  g5 {[%clk 0:02:50]} 14. Bg3 {[%clk 0:02:28]}  f5 {[%clk 0:02:39]} 15. exf5 {[%clk 0:02:21]}  Nxf5 {[%clk 0:02:36]} 16. Qd3 {[%clk 0:02:19]}  Nc4 {[%clk 0:02:22]} 17. b3 {[%clk 0:02:14]}  Na3 {[%clk 0:02:22]} 18. Bd1 {[%clk 0:02:10]}  g4 {[%clk 0:02:13]} 19. Nd2 {[%clk 0:02:05]}  Nxd4 {[%clk 0:02:11]} 20. f3 {[%clk 0:01:52]}  Bf5 {[%clk 0:02:09]} 21. Nce4 {[%clk 0:01:51]}  d5 {[%clk 0:02:07]} 22. fxg4 {[%clk 0:01:27]}  dxe4 {[%clk 0:01:49]} 23. Qe3 {[%clk 0:01:15]}  Nac2 {[%clk 0:01:45]} 0-1


[Site "https://www.chess.com"]

[Event "Titled Tuesday Blitz July 11 Early 2023"]
[White "Stepanencu, Nicodim-Cosmin"]
[Black "Zhigalko, Sergei"]
[WhiteFideId "1256220"]
[BlackFideId "13502956"]
[WhiteElo "2633"]
[BlackElo "2892"]
[Result "0-1"]
[Round "3"]
[TimeControl "180+2"]
[Date "2023.07.11"]
[WhiteClock "0:00:08"]
[BlackClock "0:00:04"]
[Board "21"]

1. b3 {[%clk 0:03:00]}  e5 {[%clk 0:02:59]} 2. Bb2 {[%clk 0:03:01]}  e4 {[%clk 0:03:00]} 3. g3 {[%clk 0:02:56]}  Nf6 {[%clk 0:02:59]} 4. Bg2 {[%clk 0:02:56]}  d5 {[%clk 0:02:59]} 5. d3 {[%clk 0:02:54]}  e3 {[%clk 0:03:00]} 6. f4 {[%clk 0:02:54]}  Bc5 {[%clk 0:02:37]} 7. d4 {[%clk 0:02:50]}  Bd6 {[%clk 0:02:28]} 8. Nc3 {[%clk 0:02:43]}  O-O {[%clk 0:02:23]} 9. Qd3 {[%clk 0:02:37]}  Ng4 {[%clk 0:01:53]} 10. Nh3 {[%clk 0:02:33]}  c6 {[%clk 0:01:47]} 11. O-O-O {[%clk 0:02:27]}  Qf6 {[%clk 0:01:27]} 12. Rdf1 {[%clk 0:02:21]}  Bf5 {[%clk 0:01:24]} 13. Qd1 {[%clk 0:02:16]}  Na6 {[%clk 0:01:24]} 14. Kb1 {[%clk 0:02:12]}  Nb4 {[%clk 0:01:24]} 15. Qc1 {[%clk 0:01:32]}  Nxc2 {[%clk 0:01:19]} 16. Ne4 {[%clk 0:01:17]}  Na3+ {[%clk 0:00:34]} 17. Bxa3 {[%clk 0:01:14]}  Bxa3 {[%clk 0:00:35]} 18. Qxa3 {[%clk 0:01:15]}  Bxe4+ {[%clk 0:00:28]} 19. Bxe4 {[%clk 0:01:15]}  dxe4 {[%clk 0:00:29]} 20. Qb4 {[%clk 0:00:42]}  Rfd8 {[%clk 0:00:28]} 21. Rd1 {[%clk 0:00:38]}  h6 {[%clk 0:00:28]} 22. Qxb7 {[%clk 0:00:37]}  a5 {[%clk 0:00:24]} 23. f5 {[%clk 0:00:23]}  a4 {[%clk 0:00:23]} 24. Rhf1 {[%clk 0:00:21]}  axb3 {[%clk 0:00:21]} 25. axb3 {[%clk 0:00:22]}  Rdb8 {[%clk 0:00:20]} 26. Qc7 {[%clk 0:00:20]}  Rxb3+ {[%clk 0:00:16]} 27. Kc2 {[%clk 0:00:21]}  Rab8 {[%clk 0:00:09]} 28. Rb1 {[%clk 0:00:21]}  Qxd4 {[%clk 0:00:06]} 29. Qxb8+ {[%clk 0:00:09]}  Rxb8 {[%clk 0:00:07]} 30. Rxb8+ {[%clk 0:00:10]}  Kh7 {[%clk 0:00:07]} 31. Nf4 {[%clk 0:00:08]}  Ne5 {[%clk 0:00:04]} 32. Rd1 {[%clk 0:00:08]}  Qc5+ {[%clk 0:00:04]} 33. Kb2 {[%clk 0:00:08]}  Nc4+ {[%clk 0:00:05]} 34. Kb1 {[%clk 0:00:07]}  Nd2+ {[%clk 0:00:04]} 35. Ka1 {[%clk 0:00:08]}  Qa3# {[%clk 0:00:04]} 0-1


[Site "https://www.chess.com"]

[Event "Titled Tuesday Blitz July 11 Early 2023"]
[White "NLLO777"]
[Black "Grandelius, Nils"]
[BlackFideId "1710400"]
[WhiteElo "2615"]
[BlackElo "2874"]
[Result "1-0"]
[Round "3"]
[TimeControl "180+2"]
[Date "2023.07.11"]
[WhiteClock "0:00:06"]
[BlackClock "0:00:05"]
[Board "23"]

1. Nf3 {[%clk 0:03:00]}  Nf6 {[%clk 0:02:58]} 2. g3 {[%clk 0:03:01]}  c5 {[%clk 0:02:58]} 3. Bg2 {[%clk 0:03:01]}  Nc6 {[%clk 0:02:56]} 4. O-O {[%clk 0:03:01]}  e5 {[%clk 0:02:56]} 5. d3 {[%clk 0:03:01]}  d5 {[%clk 0:02:56]} 6. c4 {[%clk 0:03:01]}  Be7 {[%clk 0:02:47]} 7. Bg5 {[%clk 0:02:30]}  d4 {[%clk 0:02:36]} 8. e3 {[%clk 0:02:22]}  O-O {[%clk 0:02:29]} 9. exd4 {[%clk 0:02:22]}  exd4 {[%clk 0:02:29]} 10. Nbd2 {[%clk 0:02:21]}  h6 {[%clk 0:02:27]} 11. Bxf6 {[%clk 0:02:18]}  Bxf6 {[%clk 0:02:28]} 12. Re1 {[%clk 0:02:18]}  Bf5 {[%clk 0:02:25]} 13. Ne4 {[%clk 0:02:17]}  Be7 {[%clk 0:02:25]} 14. a3 {[%clk 0:02:17]}  Re8 {[%clk 0:02:22]} 15. Qb3 {[%clk 0:02:11]}  Qd7 {[%clk 0:02:15]} 16. Re2 {[%clk 0:02:08]}  Bg4 {[%clk 0:02:07]} 17. Rae1 {[%clk 0:02:00]}  Bf8 {[%clk 0:02:02]} 18. h3 {[%clk 0:01:49]}  Bh5 {[%clk 0:01:43]} 19. g4 {[%clk 0:01:43]}  Bg6 {[%clk 0:01:42]} 20. Qb5 {[%clk 0:01:16]}  Bxe4 {[%clk 0:01:30]} 21. Rxe4 {[%clk 0:01:16]}  Rxe4 {[%clk 0:01:30]} 22. Rxe4 {[%clk 0:01:17]}  Rd8 {[%clk 0:01:31]} 23. Qb3 {[%clk 0:00:47]}  Bd6 {[%clk 0:01:25]} 24. Qc2 {[%clk 0:00:42]}  a6 {[%clk 0:01:21]} 25. Qe2 {[%clk 0:00:38]}  b5 {[%clk 0:01:22]} 26. Nd2 {[%clk 0:00:36]}  Na5 {[%clk 0:01:19]} 27. b3 {[%clk 0:00:21]}  bxc4 {[%clk 0:01:15]} 28. Nxc4 {[%clk 0:00:16]}  Nxc4 {[%clk 0:01:11]} 29. bxc4 {[%clk 0:00:16]}  Rb8 {[%clk 0:01:03]} 30. Qe1 {[%clk 0:00:13]}  Bf8 {[%clk 0:01:00]} 31. Re2 {[%clk 0:00:13]}  Qa4 {[%clk 0:00:59]} 32. Bd5 {[%clk 0:00:10]}  Qd7 {[%clk 0:00:42]} 33. Kg2 {[%clk 0:00:09]}  h5 {[%clk 0:00:37]} 34. Re4 {[%clk 0:00:08]}  hxg4 {[%clk 0:00:31]} 35. hxg4 {[%clk 0:00:09]}  Rb6 {[%clk 0:00:31]} 36. Qd2 {[%clk 0:00:06]}  Rg6 {[%clk 0:00:28]} 37. Qf4 {[%clk 0:00:05]}  Bd6 {[%clk 0:00:12]} 38. Qf3 {[%clk 0:00:05]}  Rf6 {[%clk 0:00:12]} 39. Qe2 {[%clk 0:00:04]}  g6 {[%clk 0:00:11]} 40. f3 {[%clk 0:00:02]}  Bc7 {[%clk 0:00:10]} 41. Re8+ {[%clk 0:00:03]}  Kg7 {[%clk 0:00:11]} 42. Qe7 {[%clk 0:00:02]}  Qd6 {[%clk 0:00:06]} 43. Qxd6 {[%clk 0:00:02]}  Bxd6 {[%clk 0:00:03]} 44. Ra8 {[%clk 0:00:03]}  Bf4 {[%clk 0:00:04]} 45. Ra7 {[%clk 0:00:03]}  g5 {[%clk 0:00:03]} 46. Kf2 {[%clk 0:00:04]}  Kg6 {[%clk 0:00:04]} 47. a4 {[%clk 0:00:03]}  a5 {[%clk 0:00:03]} 48. Rxa5 {[%clk 0:00:02]}  Rb6 {[%clk 0:00:04]} 49. Rxc5 {[%clk 0:00:02]}  Rb2+ {[%clk 0:00:04]} 50. Kf1 {[%clk 0:00:03]}  Rb1+ {[%clk 0:00:05]} 51. Ke2 {[%clk 0:00:03]}  Rb2+ {[%clk 0:00:05]} 52. Ke1 {[%clk 0:00:04]}  Rb1+ {[%clk 0:00:05]} 53. Ke2 {[%clk 0:00:04]}  Rb2+ {[%clk 0:00:06]} 54. Kd1 {[%clk 0:00:05]}  Rd2+ {[%clk 0:00:06]} 55. Ke1 {[%clk 0:00:06]}  Rxd3 {[%clk 0:00:05]} 56. Be4+ {[%clk 0:00:06]} 1-0


[Site "https://www.chess.com"]

[Event "Titled Tuesday Blitz July 11 Early 2023"]
[White "Maksimovic, Bojan"]
[Black "HamedWafa4"]
[WhiteFideId "14408120"]
[WhiteElo "2849"]
[BlackElo "2609"]
[Result "0-1"]
[Round "3"]
[TimeControl "180+2"]
[Date "2023.07.11"]
[WhiteClock "0:00:18"]
[BlackClock "0:00:12"]
[Board "26"]

1. Nf3 {[%clk 0:03:00]}  c5 {[%clk 0:02:57]} 2. g3 {[%clk 0:03:00]}  Nc6 {[%clk 0:02:57]} 3. Bg2 {[%clk 0:03:01]}  g6 {[%clk 0:02:54]} 4. O-O {[%clk 0:03:01]}  Bg7 {[%clk 0:02:54]} 5. c3 {[%clk 0:03:01]}  d5 {[%clk 0:02:52]} 6. d3 {[%clk 0:03:01]}  e6 {[%clk 0:02:50]} 7. Nbd2 {[%clk 0:03:01]}  Nge7 {[%clk 0:02:50]} 8. e4 {[%clk 0:03:02]}  O-O {[%clk 0:02:51]} 9. Re1 {[%clk 0:03:02]}  dxe4 {[%clk 0:02:48]} 10. dxe4 {[%clk 0:03:02]}  e5 {[%clk 0:02:46]} 11. a4 {[%clk 0:03:01]}  Be6 {[%clk 0:02:43]} 12. Bf1 {[%clk 0:03:00]}  h6 {[%clk 0:02:42]} 13. Bc4 {[%clk 0:03:00]}  Bxc4 {[%clk 0:02:37]} 14. Nxc4 {[%clk 0:03:01]}  Qc7 {[%clk 0:02:37]} 15. Be3 {[%clk 0:02:57]}  Rfd8 {[%clk 0:02:31]} 16. Qb3 {[%clk 0:02:57]}  b6 {[%clk 0:02:30]} 17. a5 {[%clk 0:02:57]}  Rab8 {[%clk 0:02:30]} 18. axb6 {[%clk 0:02:57]}  axb6 {[%clk 0:02:31]} 19. Qb5 {[%clk 0:02:57]}  Na7 {[%clk 0:02:26]} 20. Qa6 {[%clk 0:02:58]}  Nac8 {[%clk 0:02:22]} 21. Red1 {[%clk 0:02:54]}  Nd6 {[%clk 0:02:17]} 22. Nxd6 {[%clk 0:02:36]}  Rxd6 {[%clk 0:02:18]} 23. Rxd6 {[%clk 0:02:36]}  Qxd6 {[%clk 0:02:18]} 24. Nd2 {[%clk 0:02:36]}  Qc6 {[%clk 0:02:14]} 25. Qa7 {[%clk 0:02:28]}  Re8 {[%clk 0:02:09]} 26. f3 {[%clk 0:02:24]}  Nc8 {[%clk 0:02:02]} 27. Qa8 {[%clk 0:02:24]}  Qd7 {[%clk 0:01:55]} 28. Qd5 {[%clk 0:02:23]}  Qc7 {[%clk 0:01:53]} 29. Kf2 {[%clk 0:02:10]}  Rd8 {[%clk 0:01:52]} 30. Qa8 {[%clk 0:02:11]}  h5 {[%clk 0:01:47]} 31. Nc4 {[%clk 0:02:07]}  h4 {[%clk 0:01:39]} 32. g4 {[%clk 0:02:07]}  b5 {[%clk 0:01:32]} 33. Qa5 {[%clk 0:02:02]}  Qd7 {[%clk 0:01:27]} 34. Na3 {[%clk 0:01:55]}  Nd6 {[%clk 0:01:12]} 35. h3 {[%clk 0:01:38]}  Bf8 {[%clk 0:01:09]} 36. Kg2 {[%clk 0:01:30]}  Nc4 {[%clk 0:01:04]} 37. Nxc4 {[%clk 0:01:29]}  bxc4 {[%clk 0:01:05]} 38. Rf1 {[%clk 0:01:18]}  Rb8 {[%clk 0:00:56]} 39. Rf2 {[%clk 0:01:17]}  Qc6 {[%clk 0:00:50]} 40. Bg5 {[%clk 0:01:17]}  Ra8 {[%clk 0:00:45]} 41. Qxa8 {[%clk 0:01:12]}  Qxa8 {[%clk 0:00:44]} 42. Bxh4 {[%clk 0:01:13]}  Bh6 {[%clk 0:00:43]} 43. Bf6 {[%clk 0:01:11]}  Bg7 {[%clk 0:00:36]} 44. Bg5 {[%clk 0:01:12]}  Qa1 {[%clk 0:00:36]} 45. Rd2 {[%clk 0:01:07]}  Kh7 {[%clk 0:00:34]} 46. Rd7 {[%clk 0:00:45]}  Qxb2+ {[%clk 0:00:33]} 47. Kg3 {[%clk 0:00:46]}  Qxc3 {[%clk 0:00:21]} 48. Rxf7 {[%clk 0:00:45]}  Qe1+ {[%clk 0:00:21]} 49. Kg2 {[%clk 0:00:45]}  Kg8 {[%clk 0:00:22]} 50. Rc7 {[%clk 0:00:44]}  Qe2+ {[%clk 0:00:22]} 51. Kg3 {[%clk 0:00:44]}  c3 {[%clk 0:00:23]} 52. Rxc5 {[%clk 0:00:37]}  c2 {[%clk 0:00:23]} 53. Rc8+ {[%clk 0:00:35]}  Kf7 {[%clk 0:00:23]} 54. Rc7+ {[%clk 0:00:36]}  Kg8 {[%clk 0:00:20]} 55. Rc8+ {[%clk 0:00:36]}  Bf8 {[%clk 0:00:18]} 56. Bh6 {[%clk 0:00:36]}  Kh7 {[%clk 0:00:13]} 57. Bg5 {[%clk 0:00:19]}  Bb4 {[%clk 0:00:13]} 58. Bf6 {[%clk 0:00:18]}  Be1# {[%clk 0:00:12]} 0-1


[Site "https://www.chess.com"]

[Event "Titled Tuesday Blitz July 11 Early 2023"]
[White "Sadykov, Ramil"]
[Black "Sattarov, Bobir"]
[WhiteFideId "24113590"]
[BlackFideId "14203081"]
[WhiteElo "2605"]
[BlackElo "2838"]
[Result "0-1"]
[Round "3"]
[TimeControl "180+2"]
[Date "2023.07.11"]
[WhiteClock "0:00:00"]
[BlackClock "0:00:16"]
[Board "27"]

1. e4 {[%clk 0:03:00]}  e5 {[%clk 0:03:00]} 2. Nf3 {[%clk 0:03:00]}  Nc6 {[%clk 0:03:00]} 3. Bc4 {[%clk 0:03:00]}  Bc5 {[%clk 0:02:59]} 4. O-O {[%clk 0:03:00]}  d6 {[%clk 0:03:00]} 5. c3 {[%clk 0:02:59]}  Qf6 {[%clk 0:03:00]} 6. b4 {[%clk 0:02:51]}  Bb6 {[%clk 0:02:59]} 7. a4 {[%clk 0:02:51]}  a6 {[%clk 0:02:59]} 8. a5 {[%clk 0:02:48]}  Ba7 {[%clk 0:02:58]} 9. h3 {[%clk 0:02:32]}  Nge7 {[%clk 0:02:58]} 10. Na3 {[%clk 0:02:28]}  Ng6 {[%clk 0:02:53]} 11. Nc2 {[%clk 0:02:05]}  O-O {[%clk 0:02:25]} 12. Ne3 {[%clk 0:01:43]}  Nf4 {[%clk 0:02:23]} 13. Nd5 {[%clk 0:01:24]}  Nxd5 {[%clk 0:02:23]} 14. Bxd5 {[%clk 0:01:25]}  Ne7 {[%clk 0:02:24]} 15. Bc4 {[%clk 0:01:19]}  Ng6 {[%clk 0:02:22]} 16. d4 {[%clk 0:01:16]}  h6 {[%clk 0:02:22]} 17. Be3 {[%clk 0:01:08]}  Nf4 {[%clk 0:02:22]} 18. Kh2 {[%clk 0:01:01]}  Re8 {[%clk 0:02:21]} 19. Re1 {[%clk 0:00:59]}  Ne6 {[%clk 0:02:18]} 20. Qd2 {[%clk 0:00:53]}  Bb8 {[%clk 0:02:00]} 21. d5 {[%clk 0:00:37]}  Nf8 {[%clk 0:01:57]} 22. b5 {[%clk 0:00:35]}  axb5 {[%clk 0:01:55]} 23. Bxb5 {[%clk 0:00:36]}  Re7 {[%clk 0:01:42]} 24. a6 {[%clk 0:00:34]}  c5 {[%clk 0:01:03]} 25. dxc6 {[%clk 0:00:27]}  bxa6 {[%clk 0:01:02]} 26. Qe2 {[%clk 0:00:23]}  d5 {[%clk 0:00:59]} 27. Bxa6 {[%clk 0:00:14]}  dxe4 {[%clk 0:00:49]} 28. Nd2 {[%clk 0:00:09]}  Qxc6 {[%clk 0:00:47]} 29. Bxc8 {[%clk 0:00:09]}  Rxa1 {[%clk 0:00:47]} 30. Rxa1 {[%clk 0:00:08]}  Qxc8 {[%clk 0:00:48]} 31. Nxe4 {[%clk 0:00:04]}  f5 {[%clk 0:00:47]} 32. Nd2 {[%clk 0:00:03]}  Qxc3 {[%clk 0:00:30]} 33. Rb1 {[%clk 0:00:03]}  Bc7 {[%clk 0:00:28]} 34. Bb6 {[%clk 0:00:02]}  Bxb6 {[%clk 0:00:26]} 35. Rxb6 {[%clk 0:00:03]}  e4 {[%clk 0:00:25]} 36. Rb3 {[%clk 0:00:03]}  Qe5+ {[%clk 0:00:24]} 37. g3 {[%clk 0:00:04]}  Ne6 {[%clk 0:00:24]} 38. Nc4 {[%clk 0:00:04]}  Qd5 {[%clk 0:00:23]} 39. Ne3 {[%clk 0:00:04]}  Qxb3 {[%clk 0:00:22]} 40. Nxf5 {[%clk 0:00:05]}  Rf7 {[%clk 0:00:21]} 41. Qxe4 {[%clk 0:00:05]}  Ng5 {[%clk 0:00:17]} 42. Qe8+ {[%clk 0:00:04]}  Kh7 {[%clk 0:00:17]} 43. g4 {[%clk 0:00:00]}  Qxh3+ {[%clk 0:00:16]} 0-1


[Site "https://www.chess.com"]